Workbook

Sheet Sheet1
A1: Random Number | B1: Coin Flip (1 = Heads) | C1: # of Heads | D1: # of Flips | E1: % Heads
A2: =RAND() -> 0.1140737399 | B2: =ROUND(A2,0) -> 0 | C2: =SUM(B$2:B2) -> 0 | D2: =COUNT(B$2:B2) -> 1 | E2: =C2/D2 -> 0
A3: =RAND() -> 0.7882074099 | B3: =ROUND(A3,0) -> 1 | C3: =SUM(B$2:B3) -> 1 | D3: =COUNT(B$2:B3) -> 2 | E3: =C3/D3 -> 0.5
A4: 0.596228576 | B4: 1 | C4: =SUM(B$2:B4) -> 2 | D4: =COUNT(B$2:B4) -> 3 | E4: 0.6666666667
A5: 0.1304964586 | B5: 0 | C5: =SUM(B$2:B5) -> 2 | D5: =COUNT(B$2:B5) -> 4 | E5: 0.5
A6: 0.7502324506 | B6: 1 | C6: =SUM(B$2:B6) -> 3 | D6: =COUNT(B$2:B6) -> 5 | E6: 0.6
A7: 0.4109299644 | B7: 0 | C7: =SUM(B$2:B7) -> 3 | D7: =COUNT(B$2:B7) -> 6 | E7: 0.5
A8: 0.1004891655 | B8: 0 | C8: =SUM(B$2:B8) -> 3 | D8: =COUNT(B$2:B8) -> 7 | E8: 0.4285714286
A9: 0.9308311113 | B9: =ROUND(A9,0) -> 1 | C9: =SUM(B$2:B9) -> 4 | D9: =COUNT(B$2:B9) -> 8 | E9: =C9/D9 -> 0.5
A10: 0.5489422824 | B10: =ROUND(A10,0) -> 1 | C10: =SUM(B$2:B10) -> 5 | D10: =COUNT(B$2:B10) -> 9 | E10: =C10/D10 -> 0.5555555556
A11: 0.003936506759 | B11: =ROUND(A11,0) -> 0 | C11: =SUM(B$2:B11) -> 5 | D11: =COUNT(B$2:B11) -> 10 | E11: =C11/D11 -> 0.5
A12: 0.126114484 | B12: =ROUND(A12,0) -> 0 | C12: =SUM(B$2:B12) -> 5 | D12: =COUNT(B$2:B12) -> 11 | E12: =C12/D12 -> 0.4545454545
A13: 0.3747889235 | B13: =ROUND(A13,0) -> 0 | C13: =SUM(B$2:B13) -> 5 | D13: =COUNT(B$2:B13) -> 12 | E13: =C13/D13 -> 0.4166666667
A14: 0.6907049186 | B14: 1 | C14: =SUM(B$2:B14) -> 6 | D14: =COUNT(B$2:B14) -> 13 | E14: 0.4615384615
A15: 0.6697684256 | B15: 1 | C15: =SUM(B$2:B15) -> 7 | D15: =COUNT(B$2:B15) -> 14 | E15: 0.5
A16: 0.1814081059 | B16: 0 | C16: =SUM(B$2:B16) -> 7 | D16: =COUNT(B$2:B16) -> 15 | E16: 0.4666666667
A17: 0.8073957046 | B17: 1 | C17: =SUM(B$2:B17) -> 8 | D17: =COUNT(B$2:B17) -> 16 | E17: 0.5
A18: 0.3586963574 | B18: 0 | C18: =SUM(B$2:B18) -> 8 | D18: =COUNT(B$2:B18) -> 17 | E18: 0.4705882353
A19: 0.2538959336 | B19: 0 | C19: =SUM(B$2:B19) -> 8 | D19: =COUNT(B$2:B19) -> 18 | E19: 0.4444444444
A20: 0.251280562 | B20: 0 | C20: =SUM(B$2:B20) -> 8 | D20: =COUNT(B$2:B20) -> 19 | E20: 0.4210526316
A21: 0.5669157502 | B21: 1 | C21: =SUM(B$2:B21) -> 9 | D21: =COUNT(B$2:B21) -> 20 | E21: 0.45 | H21: Hypothesized probability P(Heads)
A22: 0.7428592061 | B22: 1 | C22: =SUM(B$2:B22) -> 10 | D22: =COUNT(B$2:B22) -> 21 | E22: 0.4761904762 | H22: 0.5
A23: 0.5312255504 | B23: 1 | C23: =SUM(B$2:B23) -> 11 | D23: =COUNT(B$2:B23) -> 22 | E23: 0.5
A24: 0.6454039702 | B24: 1 | C24: =SUM(B$2:B24) -> 12 | D24: =COUNT(B$2:B24) -> 23 | E24: 0.5217391304 | H24: Distance from hypothesized at end of experiment | M24: last
A25: 0.9209369212 | B25: 1 | C25: =SUM(B$2:B25) -> 13 | D25: =COUNT(B$2:B25) -> 24 | E25: 0.5416666667 | H25: =ABS(M28-H22) -> 0.002852553227 | M25: =LOOKUP(MAX(E:E)+1,E:E) -> 0.5028
A26: 0.5503892397 | B26: 1 | C26: =SUM(B$2:B26) -> 14 | D26: =COUNT(B$2:B26) -> 25 | E26: 0.56
A27: 0.4216997073 | B27: 0 | C27: =SUM(B$2:B27) -> 14 | D27: =COUNT(B$2:B27) -> 26 | E27: 0.5384615385 | H27: How close until we say rel freq = hypothesized prob? | M27: mean last 10
A28: 0.655901191 | B28: 1 | C28: =SUM(B$2:B28) -> 15 | D28: =COUNT(B$2:B28) -> 27 | E28: 0.5555555556 | H28: 0.01 | I28: Epsilon | M28: =AVERAGE(E4992:E5001) -> 0.5028525532
A29: 0.8880220655 | B29: 1 | C29: =SUM(B$2:B29) -> 16 | D29: =COUNT(B$2:B29) -> 28 | E29: 0.5714285714
A30: 0.2743039797 | B30: 0 | C30: =SUM(B$2:B30) -> 16 | D30: =COUNT(B$2:B30) -> 29 | E30: 0.5517241379 | H30: Indicator if equal or not | M30: median last 10
A31: 0.868024445 | B31: 1 | C31: =SUM(B$2:B31) -> 17 | D31: =COUNT(B$2:B31) -> 30 | E31: 0.5666666667 | H31: =IF(H25<=H28,1,0) -> 1 | I31: =IF(H31=1,"Equal","Not equal") -> Equal | M31: =MEDIAN(E4992:E5001) -> 0.5028525336
A32: 0.865126029 | B32: 1 | C32: =SUM(B$2:B32) -> 18 | D32: =COUNT(B$2:B32) -> 31 | E32: 0.5806451613
A33: 0.02937382888 | B33: 0 | C33: =SUM(B$2:B33) -> 18 | D33: =COUNT(B$2:B33) -> 32 | E33: 0.5625 | H33: Simulation | M33: average all
A34: 0.1892478583 | B34: 0 | C34: =SUM(B$2:B34) -> 18 | D34: =COUNT(B$2:B34) -> 33 | E34: 0.5454545455 | H34: How many times to repeat the flip experiment? | M34: =AVERAGE(E:E) -> 0.5027025888
A35: 0.2941091226 | B35: 0 | C35: =SUM(B$2:B35) -> 18 | D35: =COUNT(B$2:B35) -> 34 | E35: 0.5294117647 | H35: 1000
A36: 0.816374967 | B36: 1 | C36: =SUM(B$2:B36) -> 19 | D36: =COUNT(B$2:B36) -> 35 | E36: 0.5428571429 | G36: current sim number | H36: 1000 | M36: median all
A37: 0.4173566745 | B37: 0 | C37: =SUM(B$2:B37) -> 19 | D37: =COUNT(B$2:B37) -> 36 | E37: 0.5277777778 | M37: =MEDIAN(E:E) -> 0.5026790499
A38: 0.3047537049 | B38: 0 | C38: =SUM(B$2:B38) -> 19 | D38: =COUNT(B$2:B38) -> 37 | E38: 0.5135135135 | G38: % of sims where rel freq indistinguishable from hypothesized prob
A39: 0.3977130538 | B39: 0 | C39: =SUM(B$2:B39) -> 19 | D39: =COUNT(B$2:B39) -> 38 | E39: 0.5 | H39: =AVERAGE(Sheet2!B:B) -> 0.852
A40: 0.07523612854 | B40: 0 | C40: =SUM(B$2:B40) -> 19 | D40: =COUNT(B$2:B40) -> 39 | E40: 0.4871794872
A41: 0.6072388937 | B41: 1 | C41: =SUM(B$2:B41) -> 20 | D41: =COUNT(B$2:B41) -> 40 | E41: 0.5
A42: 0.5804896848 | B42: 1 | C42: =SUM(B$2:B42) -> 21 | D42: =COUNT(B$2:B42) -> 41 | E42: 0.512195122
A43: 0.09439852361 | B43: 0 | C43: =SUM(B$2:B43) -> 21 | D43: =COUNT(B$2:B43) -> 42 | E43: 0.5
A44: 0.4641590411 | B44: 0 | C44: =SUM(B$2:B44) -> 21 | D44: =COUNT(B$2:B44) -> 43 | E44: 0.488372093 | G44: Results
A45: 0.6762699471 | B45: 1 | C45: =SUM(B$2:B45) -> 22 | D45: =COUNT(B$2:B45) -> 44 | E45: 0.5 | I45: Intervals
A46: 0.5858058725 | B46: 1 | C46: =SUM(B$2:B46) -> 23 | D46: =COUNT(B$2:B46) -> 45 | E46: 0.5111111111 | I46: =$H$22-I50 -> 0.49 | J46: =$H$22-J50 -> 0.499 | K46: =$H$22-K50 -> 0.4999 | L46: =$H$22-L50 -> 0.49999 | M46: =$H$22-M50 -> 0.499999
A47: 0.1447048803 | B47: 0 | C47: =SUM(B$2:B47) -> 23 | D47: =COUNT(B$2:B47) -> 46 | E47: 0.5 | I47: =$H$22+I50 -> 0.51 | J47: =$H$22+J50 -> 0.501 | K47: =$H$22+K50 -> 0.5001 | L47: =$H$22+L50 -> 0.50001 | M47: =$H$22+M50 -> 0.500001
A48: 0.8464534197 | B48: 1 | C48: =SUM(B$2:B48) -> 24 | D48: =COUNT(B$2:B48) -> 47 | E48: 0.5106382979
A49: 0.8336384913 | B49: 1 | C49: =SUM(B$2:B49) -> 25 | D49: =COUNT(B$2:B49) -> 48 | E49: 0.5208333333 | I49: Epsilon
A50: 0.3743313995 | B50: 0 | C50: =SUM(B$2:B50) -> 25 | D50: =COUNT(B$2:B50) -> 49 | E50: 0.5102040816 | H50: N flips | I50: 0.01 | J50: 0.001 | K50: 0.0001 | L50: 1e-05 | M50: 1e-06 | N50: Reps
A51: 0.3722788882 | B51: 0 | C51: =SUM(B$2:B51) -> 25 | D51: =COUNT(B$2:B51) -> 50 | E51: 0.5 | H51: 100 | I51: 0.168 | J51: 0.015 | K51: 0 | L51: 0 | M51: 0 | N51: 10000
A52: 0.5043982698 | B52: 1 | C52: =SUM(B$2:B52) -> 26 | D52: =COUNT(B$2:B52) -> 51 | E52: 0.5098039216 | H52: 1000 | I52: 0.494 | J52: 0.058 | K52: 0.006 | L52: 0 | M52: 0 | N52: 10000
A53: 0.6217301351 | B53: 1 | C53: =SUM(B$2:B53) -> 27 | D53: =COUNT(B$2:B53) -> 52 | E53: 0.5192307692 | H53: 10000 | I53: 0.954 | J53: 0.1573 | K53: 0.0138 | L53: 0.0021 | M53: 0 | N53: 10000
A54: 0.3280231832 | B54: 0 | C54: =SUM(B$2:B54) -> 27 | D54: =COUNT(B$2:B54) -> 53 | E54: 0.5094339623 | H54: 100000 | I54: 1 | J54: 0.48 | K54: 0.05 | L54: 0.01 | M54: 0.01 | N54: 100
A55: 0.3337918002 | B55: 0 | C55: =SUM(B$2:B55) -> 27 | D55: =COUNT(B$2:B55) -> 54 | E55: 0.5
A56: 0.9865008889 | B56: 1 | C56: =SUM(B$2:B56) -> 28 | D56: =COUNT(B$2:B56) -> 55 | E56: 0.5090909091 | I56: "95.4% of 10,000 simulations of 10,000 flips had relative frequency of heads in [.49, .51]"
A57: 0.7542897943 | B57: 1 | C57: =SUM(B$2:B57) -> 29 | D57: =COUNT(B$2:B57) -> 56 | E57: 0.5178571429
A58: 0.9415174443 | B58: 1 | C58: =SUM(B$2:B58) -> 30 | D58: =COUNT(B$2:B58) -> 57 | E58: 0.5263157895
A59: 0.2345310752 | B59: 0 | C59: =SUM(B$2:B59) -> 30 | D59: =COUNT(B$2:B59) -> 58 | E59: 0.5172413793
A60: 0.5445286935 | B60: 1 | C60: =SUM(B$2:B60) -> 31 | D60: =COUNT(B$2:B60) -> 59 | E60: 0.5254237288
A61: 0.9571326232 | B61: 1 | C61: =SUM(B$2:B61) -> 32 | D61: =COUNT(B$2:B61) -> 60 | E61: 0.5333333333
A62: 0.7545917803 | B62: 1 | C62: =SUM(B$2:B62) -> 33 | D62: =COUNT(B$2:B62) -> 61 | E62: 0.5409836066
A63: 0.1906068704 | B63: 0 | C63: =SUM(B$2:B63) -> 33 | D63: =COUNT(B$2:B63) -> 62 | E63: 0.5322580645
A64: 0.4198095329 | B64: 0 | C64: =SUM(B$2:B64) -> 33 | D64: =COUNT(B$2:B64) -> 63 | E64: 0.5238095238
A65: 0.6434677374 | B65: 1 | C65: =SUM(B$2:B65) -> 34 | D65: =COUNT(B$2:B65) -> 64 | E65: 0.53125
A66: 0.4314999632 | B66: 0 | C66: =SUM(B$2:B66) -> 34 | D66: =COUNT(B$2:B66) -> 65 | E66: 0.5230769231
A67: =RAND() -> 0.7318917211 | B67: 1 | C67: =SUM(B$2:B67) -> 35 | D67: =COUNT(B$2:B67) -> 66 | E67: 0.5303030303
A68: 0.9545095707 | B68: 1 | C68: =SUM(B$2:B68) -> 36 | D68: =COUNT(B$2:B68) -> 67 | E68: 0.5373134328
A69: 0.8853037249 | B69: 1 | C69: =SUM(B$2:B69) -> 37 | D69: =COUNT(B$2:B69) -> 68 | E69: 0.5441176471
A70: 0.0509291293 | B70: 0 | C70: =SUM(B$2:B70) -> 37 | D70: =COUNT(B$2:B70) -> 69 | E70: 0.5362318841
A71: 0.222409148 | B71: 0 | C71: =SUM(B$2:B71) -> 37 | D71: =COUNT(B$2:B71) -> 70 | E71: 0.5285714286
A72: 0.05008886367 | B72: 0 | C72: =SUM(B$2:B72) -> 37 | D72: =COUNT(B$2:B72) -> 71 | E72: 0.5211267606
A73: 0.9634803184 | B73: 1 | C73: =SUM(B$2:B73) -> 38 | D73: =COUNT(B$2:B73) -> 72 | E73: 0.5277777778
A74: 0.6229331485 | B74: 1 | C74: =SUM(B$2:B74) -> 39 | D74: =COUNT(B$2:B74) -> 73 | E74: 0.5342465753
A75: 0.8899350708 | B75: 1 | C75: =SUM(B$2:B75) -> 40 | D75: =COUNT(B$2:B75) -> 74 | E75: 0.5405405405
A76: 0.9790526936 | B76: 1 | C76: =SUM(B$2:B76) -> 41 | D76: =COUNT(B$2:B76) -> 75 | E76: 0.5466666667
A77: 0.06535939058 | B77: =ROUND(A77,0) -> 0 | C77: =SUM(B$2:B77) -> 41 | D77: =COUNT(B$2:B77) -> 76 | E77: =C77/D77 -> 0.5394736842
A78: 0.2255689083 | B78: 0 | C78: =SUM(B$2:B78) -> 41 | D78: =COUNT(B$2:B78) -> 77 | E78: 0.5324675325
A79: 0.6732745019 | B79: 1 | C79: =SUM(B$2:B79) -> 42 | D79: =COUNT(B$2:B79) -> 78 | E79: 0.5384615385
A80: 0.8212416837 | B80: 1 | C80: =SUM(B$2:B80) -> 43 | D80: =COUNT(B$2:B80) -> 79 | E80: 0.5443037975
A81: 0.2032717331 | B81: 0 | C81: =SUM(B$2:B81) -> 43 | D81: =COUNT(B$2:B81) -> 80 | E81: 0.5375
A82: 0.9457432074 | B82: 1 | C82: =SUM(B$2:B82) -> 44 | D82: =COUNT(B$2:B82) -> 81 | E82: 0.5432098765
A83: 0.2390598407 | B83: 0 | C83: =SUM(B$2:B83) -> 44 | D83: =COUNT(B$2:B83) -> 82 | E83: 0.5365853659
A84: 0.3130355053 | B84: 0 | C84: =SUM(B$2:B84) -> 44 | D84: =COUNT(B$2:B84) -> 83 | E84: 0.5301204819
A85: 0.9555354309 | B85: 1 | C85: =SUM(B$2:B85) -> 45 | D85: =COUNT(B$2:B85) -> 84 | E85: 0.5357142857
A86: 0.5958077328 | B86: 1 | C86: =SUM(B$2:B86) -> 46 | D86: =COUNT(B$2:B86) -> 85 | E86: 0.5411764706
A87: 0.8201114289 | B87: 1 | C87: =SUM(B$2:B87) -> 47 | D87: =COUNT(B$2:B87) -> 86 | E87: 0.5465116279
A88: 0.8900861947 | B88: 1 | C88: =SUM(B$2:B88) -> 48 | D88: =COUNT(B$2:B88) -> 87 | E88: 0.5517241379
A89: 0.9390415324 | B89: 1 | C89: =SUM(B$2:B89) -> 49 | D89: =COUNT(B$2:B89) -> 88 | E89: 0.5568181818
A90: 0.2083391141 | B90: 0 | C90: =SUM(B$2:B90) -> 49 | D90: =COUNT(B$2:B90) -> 89 | E90: 0.5505617978
A91: 0.2632033561 | B91: 0 | C91: =SUM(B$2:B91) -> 49 | D91: =COUNT(B$2:B91) -> 90 | E91: 0.5444444444
A92: 0.7468235404 | B92: 1 | C92: =SUM(B$2:B92) -> 50 | D92: =COUNT(B$2:B92) -> 91 | E92: 0.5494505495
A93: 0.146531031 | B93: 0 | C93: =SUM(B$2:B93) -> 50 | D93: =COUNT(B$2:B93) -> 92 | E93: 0.5434782609
A94: 0.1902603803 | B94: 0 | C94: =SUM(B$2:B94) -> 50 | D94: =COUNT(B$2:B94) -> 93 | E94: 0.5376344086
A95: 0.4620324131 | B95: 0 | C95: =SUM(B$2:B95) -> 50 | D95: =COUNT(B$2:B95) -> 94 | E95: 0.5319148936
A96: 0.7644975859 | B96: 1 | C96: =SUM(B$2:B96) -> 51 | D96: =COUNT(B$2:B96) -> 95 | E96: 0.5368421053
A97: 0.8009442529 | B97: 1 | C97: =SUM(B$2:B97) -> 52 | D97: =COUNT(B$2:B97) -> 96 | E97: 0.5416666667
A98: 0.7800466144 | B98: 1 | C98: =SUM(B$2:B98) -> 53 | D98: =COUNT(B$2:B98) -> 97 | E98: 0.5463917526
A99: 0.2742458443 | B99: 0 | C99: =SUM(B$2:B99) -> 53 | D99: =COUNT(B$2:B99) -> 98 | E99: 0.5408163265
A100: 0.2348642179 | B100: 0 | C100: =SUM(B$2:B100) -> 53 | D100: =COUNT(B$2:B100) -> 99 | E100: 0.5353535354
A101: 0.5982157414 | B101: 1 | C101: =SUM(B$2:B101) -> 54 | D101: =COUNT(B$2:B101) -> 100 | E101: 0.54
A102: 0.02632214628 | B102: 0 | C102: =SUM(B$2:B102) -> 54 | D102: =COUNT(B$2:B102) -> 101 | E102: 0.5346534653
A103: 0.05560213831 | B103: 0 | C103: =SUM(B$2:B103) -> 54 | D103: =COUNT(B$2:B103) -> 102 | E103: 0.5294117647
A104: 0.3371222263 | B104: 0 | C104: =SUM(B$2:B104) -> 54 | D104: =COUNT(B$2:B104) -> 103 | E104: 0.5242718447
A105: 0.1787834871 | B105: 0 | C105: =SUM(B$2:B105) -> 54 | D105: =COUNT(B$2:B105) -> 104 | E105: 0.5192307692
A106: 0.6407508436 | B106: 1 | C106: =SUM(B$2:B106) -> 55 | D106: =COUNT(B$2:B106) -> 105 | E106: 0.5238095238
A107: 0.4671423939 | B107: 0 | C107: =SUM(B$2:B107) -> 55 | D107: =COUNT(B$2:B107) -> 106 | E107: 0.5188679245
A108: 0.6270950789 | B108: 1 | C108: =SUM(B$2:B108) -> 56 | D108: =COUNT(B$2:B108) -> 107 | E108: 0.523364486
A109: 0.2780305887 | B109: 0 | C109: =SUM(B$2:B109) -> 56 | D109: =COUNT(B$2:B109) -> 108 | E109: 0.5185185185
A110: 0.6764392403 | B110: 1 | C110: =SUM(B$2:B110) -> 57 | D110: =COUNT(B$2:B110) -> 109 | E110: 0.5229357798
A111: 0.4506455011 | B111: 0 | C111: =SUM(B$2:B111) -> 57 | D111: =COUNT(B$2:B111) -> 110 | E111: 0.5181818182
A112: 0.2492842855 | B112: 0 | C112: =SUM(B$2:B112) -> 57 | D112: =COUNT(B$2:B112) -> 111 | E112: 0.5135135135
A113: 0.4646277497 | B113: 0 | C113: =SUM(B$2:B113) -> 57 | D113: =COUNT(B$2:B113) -> 112 | E113: 0.5089285714
A114: 0.2464472754 | B114: 0 | C114: =SUM(B$2:B114) -> 57 | D114: =COUNT(B$2:B114) -> 113 | E114: 0.5044247788
A115: 0.1681236211 | B115: 0 | C115: =SUM(B$2:B115) -> 57 | D115: =COUNT(B$2:B115) -> 114 | E115: 0.5
A116: 0.6761545621 | B116: 1 | C116: =SUM(B$2:B116) -> 58 | D116: =COUNT(B$2:B116) -> 115 | E116: 0.5043478261
A117: 0.7328524247 | B117: 1 | C117: =SUM(B$2:B117) -> 59 | D117: =COUNT(B$2:B117) -> 116 | E117: 0.5086206897
A118: 0.9894455317 | B118: 1 | C118: =SUM(B$2:B118) -> 60 | D118: =COUNT(B$2:B118) -> 117 | E118: 0.5128205128
A119: 0.4856354111 | B119: 0 | C119: =SUM(B$2:B119) -> 60 | D119: =COUNT(B$2:B119) -> 118 | E119: 0.5084745763
A120: 0.5789010737 | B120: 1 | C120: =SUM(B$2:B120) -> 61 | D120: =COUNT(B$2:B120) -> 119 | E120: 0.512605042
A121: 0.3463850998 | B121: 0 | C121: =SUM(B$2:B121) -> 61 | D121: =COUNT(B$2:B121) -> 120 | E121: 0.5083333333
A122: 0.9906865933 | B122: 1 | C122: =SUM(B$2:B122) -> 62 | D122: =COUNT(B$2:B122) -> 121 | E122: 0.5123966942
A123: 0.2769796789 | B123: 0 | C123: =SUM(B$2:B123) -> 62 | D123: =COUNT(B$2:B123) -> 122 | E123: 0.5081967213
A124: 0.5143663712 | B124: 1 | C124: =SUM(B$2:B124) -> 63 | D124: =COUNT(B$2:B124) -> 123 | E124: 0.512195122
A125: 0.006955445192 | B125: 0 | C125: =SUM(B$2:B125) -> 63 | D125: =COUNT(B$2:B125) -> 124 | E125: 0.5080645161
A126: 0.3455892782 | B126: 0 | C126: =SUM(B$2:B126) -> 63 | D126: =COUNT(B$2:B126) -> 125 | E126: 0.504
A127: 0.1152894911 | B127: 0 | C127: =SUM(B$2:B127) -> 63 | D127: =COUNT(B$2:B127) -> 126 | E127: 0.5
A128: 0.7968014296 | B128: 1 | C128: =SUM(B$2:B128) -> 64 | D128: =COUNT(B$2:B128) -> 127 | E128: 0.5039370079
A129: 0.1631401486 | B129: 0 | C129: =SUM(B$2:B129) -> 64 | D129: =COUNT(B$2:B129) -> 128 | E129: 0.5
A130: 0.4370751911 | B130: 0 | C130: =SUM(B$2:B130) -> 64 | D130: =COUNT(B$2:B130) -> 129 | E130: 0.496124031
A131: =RAND() -> 0.164299324 | B131: 0 | C131: =SUM(B$2:B131) -> 64 | D131: =COUNT(B$2:B131) -> 130 | E131: 0.4923076923
A132: 0.447953677 | B132: 0 | C132: =SUM(B$2:B132) -> 64 | D132: =COUNT(B$2:B132) -> 131 | E132: 0.4885496183
A133: 0.6217918557 | B133: 1 | C133: =SUM(B$2:B133) -> 65 | D133: =COUNT(B$2:B133) -> 132 | E133: 0.4924242424
A134: 0.2434964459 | B134: 0 | C134: =SUM(B$2:B134) -> 65 | D134: =COUNT(B$2:B134) -> 133 | E134: 0.4887218045
A135: 0.2489694327 | B135: 0 | C135: =SUM(B$2:B135) -> 65 | D135: =COUNT(B$2:B135) -> 134 | E135: 0.4850746269
A136: 0.8844276602 | B136: 1 | C136: =SUM(B$2:B136) -> 66 | D136: =COUNT(B$2:B136) -> 135 | E136: 0.4888888889
A137: 0.1961167142 | B137: 0 | C137: =SUM(B$2:B137) -> 66 | D137: =COUNT(B$2:B137) -> 136 | E137: 0.4852941176
A138: 0.767942664 | B138: 1 | C138: =SUM(B$2:B138) -> 67 | D138: =COUNT(B$2:B138) -> 137 | E138: 0.4890510949
A139: 0.4610389242 | B139: 0 | C139: =SUM(B$2:B139) -> 67 | D139: =COUNT(B$2:B139) -> 138 | E139: 0.4855072464
A140: 0.018670255 | B140: 0 | C140: =SUM(B$2:B140) -> 67 | D140: =COUNT(B$2:B140) -> 139 | E140: 0.4820143885
A141: 0.3361782853 | B141: =ROUND(A141,0) -> 0 | C141: =SUM(B$2:B141) -> 67 | D141: =COUNT(B$2:B141) -> 140 | E141: =C141/D141 -> 0.4785714286
A142: 0.3348220384 | B142: 0 | C142: =SUM(B$2:B142) -> 67 | D142: =COUNT(B$2:B142) -> 141 | E142: 0.475177305
A143: 0.146758042 | B143: 0 | C143: =SUM(B$2:B143) -> 67 | D143: =COUNT(B$2:B143) -> 142 | E143: 0.4718309859
A144: 0.01095719945 | B144: 0 | C144: =SUM(B$2:B144) -> 67 | D144: =COUNT(B$2:B144) -> 143 | E144: 0.4685314685
A145: 0.4843162739 | B145: 0 | C145: =SUM(B$2:B145) -> 67 | D145: =COUNT(B$2:B145) -> 144 | E145: 0.4652777778
A146: 0.6992244508 | B146: 1 | C146: =SUM(B$2:B146) -> 68 | D146: =COUNT(B$2:B146) -> 145 | E146: 0.4689655172
A147: 0.6798725789 | B147: 1 | C147: =SUM(B$2:B147) -> 69 | D147: =COUNT(B$2:B147) -> 146 | E147: 0.4726027397
A148: 0.7176074478 | B148: 1 | C148: =SUM(B$2:B148) -> 70 | D148: =COUNT(B$2:B148) -> 147 | E148: 0.4761904762
A149: 0.6001940122 | B149: 1 | C149: =SUM(B$2:B149) -> 71 | D149: =COUNT(B$2:B149) -> 148 | E149: 0.4797297297
A150: 0.02373337615 | B150: 0 | C150: =SUM(B$2:B150) -> 71 | D150: =COUNT(B$2:B150) -> 149 | E150: 0.4765100671
A151: 0.835077545 | B151: 1 | C151: =SUM(B$2:B151) -> 72 | D151: =COUNT(B$2:B151) -> 150 | E151: 0.48
A152: 0.6222086222 | B152: 1 | C152: =SUM(B$2:B152) -> 73 | D152: =COUNT(B$2:B152) -> 151 | E152: 0.4834437086
A153: 0.9455673608 | B153: 1 | C153: =SUM(B$2:B153) -> 74 | D153: =COUNT(B$2:B153) -> 152 | E153: 0.4868421053
A154: 0.9006547455 | B154: 1 | C154: =SUM(B$2:B154) -> 75 | D154: =COUNT(B$2:B154) -> 153 | E154: 0.4901960784
A155: 0.4878173577 | B155: 0 | C155: =SUM(B$2:B155) -> 75 | D155: =COUNT(B$2:B155) -> 154 | E155: 0.487012987
A156: 0.7904165019 | B156: 1 | C156: =SUM(B$2:B156) -> 76 | D156: =COUNT(B$2:B156) -> 155 | E156: 0.4903225806
A157: 0.9123849093 | B157: 1 | C157: =SUM(B$2:B157) -> 77 | D157: =COUNT(B$2:B157) -> 156 | E157: 0.4935897436
A158: 0.4743575143 | B158: 0 | C158: =SUM(B$2:B158) -> 77 | D158: =COUNT(B$2:B158) -> 157 | E158: 0.4904458599
A159: 0.4816968885 | B159: 0 | C159: =SUM(B$2:B159) -> 77 | D159: =COUNT(B$2:B159) -> 158 | E159: 0.4873417722
A160: 0.3608909627 | B160: 0 | C160: =SUM(B$2:B160) -> 77 | D160: =COUNT(B$2:B160) -> 159 | E160: 0.4842767296
A161: 0.6401529436 | B161: 1 | C161: =SUM(B$2:B161) -> 78 | D161: =COUNT(B$2:B161) -> 160 | E161: 0.4875
A162: 0.2858843683 | B162: 0 | C162: =SUM(B$2:B162) -> 78 | D162: =COUNT(B$2:B162) -> 161 | E162: 0.4844720497
A163: 0.144761075 | B163: 0 | C163: =SUM(B$2:B163) -> 78 | D163: =COUNT(B$2:B163) -> 162 | E163: 0.4814814815
A164: 0.1162662043 | B164: 0 | C164: =SUM(B$2:B164) -> 78 | D164: =COUNT(B$2:B164) -> 163 | E164: 0.4785276074
A165: 0.8520543676 | B165: 1 | C165: =SUM(B$2:B165) -> 79 | D165: =COUNT(B$2:B165) -> 164 | E165: 0.4817073171
A166: 0.8610260085 | B166: 1 | C166: =SUM(B$2:B166) -> 80 | D166: =COUNT(B$2:B166) -> 165 | E166: 0.4848484848
A167: 0.9187328224 | B167: 1 | C167: =SUM(B$2:B167) -> 81 | D167: =COUNT(B$2:B167) -> 166 | E167: 0.4879518072
A168: 0.4062434656 | B168: 0 | C168: =SUM(B$2:B168) -> 81 | D168: =COUNT(B$2:B168) -> 167 | E168: 0.4850299401
A169: 0.1671963231 | B169: 0 | C169: =SUM(B$2:B169) -> 81 | D169: =COUNT(B$2:B169) -> 168 | E169: 0.4821428571
A170: 0.02415584418 | B170: 0 | C170: =SUM(B$2:B170) -> 81 | D170: =COUNT(B$2:B170) -> 169 | E170: 0.4792899408
A171: 0.4213334848 | B171: 0 | C171: =SUM(B$2:B171) -> 81 | D171: =COUNT(B$2:B171) -> 170 | E171: 0.4764705882
A172: 0.0351903496 | B172: 0 | C172: =SUM(B$2:B172) -> 81 | D172: =COUNT(B$2:B172) -> 171 | E172: 0.4736842105
A173: 0.2532776002 | B173: 0 | C173: =SUM(B$2:B173) -> 81 | D173: =COUNT(B$2:B173) -> 172 | E173: 0.4709302326
A174: 0.1972616711 | B174: 0 | C174: =SUM(B$2:B174) -> 81 | D174: =COUNT(B$2:B174) -> 173 | E174: 0.4682080925
A175: 0.6433324434 | B175: 1 | C175: =SUM(B$2:B175) -> 82 | D175: =COUNT(B$2:B175) -> 174 | E175: 0.4712643678
A176: 0.8951622449 | B176: 1 | C176: =SUM(B$2:B176) -> 83 | D176: =COUNT(B$2:B176) -> 175 | E176: 0.4742857143
A177: 0.4414649154 | B177: 0 | C177: =SUM(B$2:B177) -> 83 | D177: =COUNT(B$2:B177) -> 176 | E177: 0.4715909091
A178: 0.08079227943 | B178: 0 | C178: =SUM(B$2:B178) -> 83 | D178: =COUNT(B$2:B178) -> 177 | E178: 0.4689265537
A179: 0.7664420257 | B179: 1 | C179: =SUM(B$2:B179) -> 84 | D179: =COUNT(B$2:B179) -> 178 | E179: 0.4719101124
A180: 0.8127631109 | B180: 1 | C180: =SUM(B$2:B180) -> 85 | D180: =COUNT(B$2:B180) -> 179 | E180: 0.4748603352
A181: 0.9681880258 | B181: 1 | C181: =SUM(B$2:B181) -> 86 | D181: =COUNT(B$2:B181) -> 180 | E181: 0.4777777778
A182: 0.7143995965 | B182: 1 | C182: =SUM(B$2:B182) -> 87 | D182: =COUNT(B$2:B182) -> 181 | E182: 0.4806629834
A183: 0.3429917194 | B183: 0 | C183: =SUM(B$2:B183) -> 87 | D183: =COUNT(B$2:B183) -> 182 | E183: 0.478021978
A184: 0.1074325449 | B184: 0 | C184: =SUM(B$2:B184) -> 87 | D184: =COUNT(B$2:B184) -> 183 | E184: 0.4754098361
A185: 0.4369572866 | B185: 0 | C185: =SUM(B$2:B185) -> 87 | D185: =COUNT(B$2:B185) -> 184 | E185: 0.472826087
A186: 0.510951543 | B186: 1 | C186: =SUM(B$2:B186) -> 88 | D186: =COUNT(B$2:B186) -> 185 | E186: 0.4756756757
A187: 0.03774809919 | B187: 0 | C187: =SUM(B$2:B187) -> 88 | D187: =COUNT(B$2:B187) -> 186 | E187: 0.4731182796
A188: 0.7672964264 | B188: 1 | C188: =SUM(B$2:B188) -> 89 | D188: =COUNT(B$2:B188) -> 187 | E188: 0.4759358289
A189: 0.4826312719 | B189: 0 | C189: =SUM(B$2:B189) -> 89 | D189: =COUNT(B$2:B189) -> 188 | E189: 0.4734042553
A190: 0.1228250727 | B190: 0 | C190: =SUM(B$2:B190) -> 89 | D190: =COUNT(B$2:B190) -> 189 | E190: 0.4708994709
A191: 0.7370080922 | B191: 1 | C191: =SUM(B$2:B191) -> 90 | D191: =COUNT(B$2:B191) -> 190 | E191: 0.4736842105
A192: 0.1964543417 | B192: 0 | C192: =SUM(B$2:B192) -> 90 | D192: =COUNT(B$2:B192) -> 191 | E192: 0.4712041885
A193: 0.8554935842 | B193: 1 | C193: =SUM(B$2:B193) -> 91 | D193: =COUNT(B$2:B193) -> 192 | E193: 0.4739583333
A194: 0.5806829503 | B194: 1 | C194: =SUM(B$2:B194) -> 92 | D194: =COUNT(B$2:B194) -> 193 | E194: 0.4766839378
A195: =RAND() -> 0.8343390285 | B195: 1 | C195: =SUM(B$2:B195) -> 93 | D195: =COUNT(B$2:B195) -> 194 | E195: 0.4793814433
A196: 0.2637983538 | B196: 0 | C196: =SUM(B$2:B196) -> 93 | D196: =COUNT(B$2:B196) -> 195 | E196: 0.4769230769
A197: 0.8093332095 | B197: 1 | C197: =SUM(B$2:B197) -> 94 | D197: =COUNT(B$2:B197) -> 196 | E197: 0.4795918367
A198: 0.4646777934 | B198: 0 | C198: =SUM(B$2:B198) -> 94 | D198: =COUNT(B$2:B198) -> 197 | E198: 0.4771573604
A199: 0.5797256348 | B199: 1 | C199: =SUM(B$2:B199) -> 95 | D199: =COUNT(B$2:B199) -> 198 | E199: 0.4797979798
A200: 0.2610026523 | B200: 0 | C200: =SUM(B$2:B200) -> 95 | D200: =COUNT(B$2:B200) -> 199 | E200: 0.4773869347
... 4801 more rows

Sheet Sheet2
B1: 1
B2: 0
B3: 1
B4: 1
B5: 1
B6: 1
B7: 1
B8: 1
B9: 1
B10: 1
B11: 0
B12: 1
B13: 1
B14: 1
B15: 1
B16: 1
B17: 1
B18: 1
B19: 1
B20: 1
B21: 1
B22: 1
B23: 1
B24: 1
B25: 1
B26: 0
B27: 1
B28: 1
B29: 1
B30: 1
B31: 1
B32: 1
B33: 1
B34: 1
B35: 1
B36: 1
B37: 1
B38: 0
B39: 1
B40: 1
B41: 1
B42: 0
B43: 1
B44: 1
B45: 1
B46: 1
B47: 0
B48: 1
B49: 1
B50: 1
B51: 1
B52: 1
B53: 1
B54: 1
B55: 1
B56: 1
B57: 1
B58: 1
B59: 1
B60: 1
B61: 1
B62: 0
B63: 1
B64: 0
B65: 1
B66: 1
B67: 0
B68: 1
B69: 0
B70: 1
B71: 0
B72: 1
B73: 1
B74: 0
B75: 1
B76: 0
B77: 0
B78: 1
B79: 1
B80: 1
B81: 1
B82: 1
B83: 1
B84: 1
B85: 1
B86: 1
B87: 1
B88: 1
B89: 1
B90: 1
B91: 1
B92: 0
B93: 1
B94: 1
B95: 1
B96: 1
B97: 1
B98: 0
B99: 1
B100: 1
B101: 0
B102: 1
B103: 1
B104: 1
B105: 0
B106: 1
B107: 1
B108: 1
B109: 1
B110: 1
B111: 1
B112: 1
B113: 1
B114: 1
B115: 1
B116: 1
B117: 1
B118: 1
B119: 1
B120: 1
B121: 0
B122: 1
B123: 1
B124: 1
B125: 1
B126: 1
B127: 0
B128: 1
B129: 1
B130: 1
B131: 1
B132: 1
B133: 0
B134: 1
B135: 1
B136: 1
B137: 1
B138: 1
B139: 0
B140: 1
B141: 1
B142: 1
B143: 1
B144: 1
B145: 1
B146: 1
B147: 1
B148: 1
B149: 1
B150: 1
B151: 1
B152: 0
B153: 1
B154: 1
B155: 1
B156: 0
B157: 1
B158: 1
B159: 1
B160: 1
B161: 1
B162: 1
B163: 1
B164: 0
B165: 1
B166: 0
B167: 0
B168: 1
B169: 1
B170: 1
B171: 1
B172: 1
B173: 1
B174: 1
B175: 0
B176: 1
B177: 1
B178: 0
B179: 1
B180: 1
B181: 1
B182: 1
B183: 1
B184: 1
B185: 1
B186: 1
B187: 1
B188: 1
B189: 1
B190: 1
B191: 1
B192: 0
B193: 1
B194: 1
B195: 0
B196: 1
B197: 1
B198: 1
B199: 0
B200: 1
... 800 more rows
